fUST/lending_fUST_20260115
["ID","MTS","AMOUNT","RATE_DAILY","PERIOD"]
[401943106,1768416643651,-2556.20051056,0.00019152,2]
[401943107,1768416643660,-507.1352,0.00019178,2]
[401943108,1768416643669,-200.0,0.00019178,2]
[401943109,1768416643679,-507.1352,0.00019178,2]
[401943110,1768416643688,-507.1352,0.00019178,2]
[401943111,1768416643698,-151.0,0.00019178,2]
[401943112,1768416643707,-151.0,0.00019178,2]
[401943113,1768416643716,-507.1352,0.00019178,2]
[401943114,1768416643725,-507.1352,0.00019178,2]
[401943115,1768416643734,-507.1352,0.00019178,2]
[401943116,1768416643745,-186.591978,0.00019178,2]
[401943117,1768416643754,-186.591978,0.00019178,2]
[401943118,1768416643763,-186.591978,0.00019178,2]
[401943119,1768416643772,-186.591978,0.00019178,2]
[401943120,1768416643782,-507.1352,0.00019178,2]
[401943121,1768416643791,-507.1352,0.00019178,2]
[401943122,1768416643800,-507.1352,0.00019178,2]
[401943123,1768416643810,-507.1352,0.00019178,2]
[401943125,1768416643819,-180.72597661,0.00019178,2]
[401943126,1768416643829,-151.0,0.00019178,2]
[401943127,1768416643841,-151.0,0.00019178,2]
[401943128,1768416643850,-5500.0,0.00019178,2]
[401943129,1768416643860,-5500.0,0.00019178,2]
[401943130,1768416643870,-5500.0,0.00019178,2]
[401943131,1768416643879,-31763.1,0.000192,2]
[401943132,1768416643889,-167.77,0.000192,2]
[401943133,1768416643898,-4527.87,0.000192,2]
[401943134,1768416643907,-214.05,0.000192,2]
[401943135,1768416643916,-243.5,0.000192,2]
[401943136,1768416643926,-820.790101,0.000192,7]
[401943137,1768416643935,-683.587352,0.000192,2]
[401943138,1768416644080,-683.587352,0.000192,2]
[401943139,1768416644096,-683.587352,0.000192,2]
[401943140,1768416644106,-683.587352,0.000192,2]
[401943141,1768416644116,-795.987765,0.000192,2]
[401943142,1768416644126,-795.987765,0.000192,2]
[401943143,1768416644135,-795.987765,0.000192,2]
[401943144,1768416644145,-795.987765,0.000192,2]
[401943145,1768416644154,-5471.934001,0.00019278,7]
[401943146,1768416644164,-303.10001603,0.00019278,2]
[401943147,1768416644174,-303.10001603,0.00019278,2]
[401943148,1768416644184,-540.44472477,0.000193,2]
[401943149,1768416644193,-6000.0,0.000193,2]
[401943150,1768416644202,-6000.0,0.000193,2]
[401943151,1768416644211,-32261.07,0.00019324,2]
[401943152,1768416644220,-151.0,0.00019324,2]
[401943153,1768416644230,-151.0,0.00019324,2]
[401943154,1768416644240,-151.0,0.00019324,2]
[401943155,1768416644250,-886.2,0.00019339,2]
[401943156,1768416644260,-13229.05305027,0.00019347,2]
[401943157,1768416644269,-767.87515318,0.0001944,9]
[401943158,1768416644280,-303.10001603,0.00019467,2]
[401943159,1768416644290,-3162.0,0.00019467,2]
[401943160,1768416644299,-303.10001603,0.00019467,2]
[401943161,1768416644309,-3615.42306018,0.00019543,2]
[401943162,1768416644319,-303.10001603,0.00019656,2]
[401943163,1768416644328,-303.10001603,0.00019656,2]
[401943164,1768416644337,-800.0,0.00019726,2]
[401943165,1768416644347,-250.0,0.00019726,2]
[401943166,1768416644357,-250.0,0.00019726,2]
[401943167,1768416644366,-6000.0,0.00019726,2]
[401943168,1768416644376,-6000.0,0.00019726,2]
[401943169,1768416644385,-6000.0,0.00019726,2]
[401943170,1768416644394,-454.65002405,0.00019845,4]
[401943171,1768416644404,-454.65002405,0.00019845,4]
[401943172,1768416644414,-6500.0,0.00019848,2]
[401943173,1768416644424,-6500.0,0.00019848,2]
[401943174,1768416644434,-2000.0,0.00019924,7]
[401943175,1768416644444,-865.53316309,0.0001999,2]
[401943176,1768416644454,-9661.0,0.0002,2]
[401943177,1768416644463,-507.1352,0.0002,4]
[401943178,1768416644472,-507.1352,0.0002,4]
[401943179,1768416644482,-507.1352,0.0002,4]
[401943180,1768416644493,-507.1352,0.0002,4]
[401943181,1768416644502,-507.1352,0.0002,4]
[401943182,1768416644511,-300.0,0.0002,2]
[401943183,1768416644521,-507.1352,0.0002,4]
[401943184,1768416644530,-151.55000802,0.0002,2]
[401943185,1768416644540,-507.1352,0.0002,4]
[401943186,1768416644549,-507.1352,0.0002,4]
[401943187,1768416644559,-454.65002405,0.00020034,4]
[401943188,1768416644568,-454.65002405,0.00020034,4]
[401943189,1768416644577,-11434.83681078,0.00020041,2]
[401943190,1768416644587,-1350.58394945,0.00020123,2]
[401943191,1768416644606,-454.65002405,0.00020223,4]
[401943192,1768416644617,-454.65002405,0.00020223,4]
[401943193,1768416644628,-767.87515318,0.00020251,11]
[401943194,1768416644639,-1000.0,0.00020257,2]
[401943195,1768416644650,-1000.0,0.00020257,2]
[401943196,1768416644660,-200.91058964,0.00020274,2]
[401943197,1768416644671,-350.0,0.00020274,2]
[401943198,1768416644681,-6500.0,0.00020274,2]
[401943199,1768416644691,-2902.72600724,0.00020274,2]
[401943200,1768416644701,-2446.58201638,0.00020274,2]
[401943201,1768416644711,-1073.24025849,0.00020396,2]
[401943202,1768416644721,-2183.87260271,0.00020396,2]
[401943203,1768416644730,-507.1352,0.00020411,5]
[401943204,1768416644739,-507.1352,0.00020411,5]
[401943205,1768416644750,-507.1352,0.00020411,5]
[401943206,1768416644759,-507.1352,0.00020411,5]
[401943207,1768416644768,-507.1352,0.00020411,5]
[401943208,1768416644777,-507.1352,0.00020411,5]
[401943209,1768416644786,-507.1352,0.00020411,5]
[401943210,1768416644796,-507.1352,0.00020411,5]
[401943211,1768416644805,-507.1352,0.00020411,5]
[401943212,1768416644817,-454.65002405,0.00020412,4]
[401943213,1768416644828,-454.65002405,0.00020412,4]
[401943214,1768416644838,-160.35823449,0.00020559,2]
[401943215,1768416644848,-168.28,0.0002056,2]
[401943216,1768416644859,-454.65002405,0.00020601,4]
[401943217,1768416644870,-454.65002405,0.00020601,4]
[401943218,1768416644882,-886.2,0.00020655,2]
[401943219,1768416644895,-4527.87,0.000207,2]
[401943220,1768416644906,-214.05,0.000207,2]
[401943221,1768416644916,-243.5,0.000207,2]
[401943222,1768416644926,-1000.0,0.00020822,2]
[401943223,1768416644937,-450.0,0.00020822,2]
[401943224,1768416644948,-7000.0,0.00020822,2]
[401943225,1768416644957,-507.1352,0.00020822,6]
[401943226,1768416644967,-168.26957802,0.00020825,2]
[401943227,1768416644978,-157.01821301,0.00020868,5]
[401943228,1768416644993,-1000.0,0.000209,2]
[401943229,1768416645002,-1000.0,0.000209,2]
[401943230,1768416645012,-168.28,0.00020903,2]
[401943231,1768416645023,-168.28,0.00020928,2]
[401943232,1768416645033,-2000.0,0.00020928,7]
[401943233,1768416645042,-1000.0,0.00021,2]
[401943234,1768416645052,-1000.0,0.00021,2]
[401943235,1768416645062,-1000.0,0.00021,2]
[401943236,1768416645071,-1000.0,0.00021,2]
[401943237,1768416645080,-1000.0,0.00021,2]
[401943238,1768416645089,-1000.0,0.00021,2]
[401943239,1768416645098,-1000.0,0.00021,2]
[401943240,1768416645108,-1000.0,0.00021,2]
[401943241,1768416645117,-2061.69937513,0.00021045,2]
[401943242,1768416645127,-767.87515318,0.00021061,12]
[401943243,1768416645136,-569.993125,0.00021267,7]
[401943244,1768416645146,-550.0,0.0002137,2]
[401943245,1768416645155,-7500.0,0.0002137,2]
[401943246,1768416645165,-4335.961039,0.00021395,7]
[401943247,1768416645175,-1757.909628,0.00021395,7]
[401943248,1768416645184,-4427.0,0.00021414,2]
[401943249,1768416645194,-167.12486556,0.00021513,5]
[401943250,1768416645203,-524.14760767,0.00021566,7]
[401943251,1768416645213,-1190.96289041,0.00021566,7]
[401943252,1768416645222,-767.87515318,0.00021871,13]
[401943253,1768416645232,-8134.7018854,0.00021908,2]
[401943254,1768416645241,-428.817537,0.00021918,2]
[401943255,1768416645251,-151.0,0.00021918,2]
[401943256,1768416645261,-171.177356,0.00021918,2]
[401943257,1768416645270,-171.177356,0.00021918,2]
[401943258,1768416645280,-341.283719,0.00021918,2]
[401943259,1768416645289,-341.283719,0.00021918,2]
[401943260,1768416645298,-171.177356,0.00021918,2]
[401943261,1768416645307,-181.655666,0.00021918,2]
[401943262,1768416645317,-341.283719,0.00021918,2]
[401943263,1768416645327,-171.177356,0.00021918,2]
[401943264,1768416645336,-341.283719,0.00021918,2]
[401943265,1768416645345,-151.0,0.00021918,2]
[401943266,1768416645355,-151.0,0.00021918,2]
[401943267,1768416645365,-677.806969,0.00021918,2]
[401943268,1768416645375,-677.806969,0.00021918,2]
[401943269,1768416645384,-677.806969,0.00021918,2]
[401943270,1768416645394,-677.806969,0.00021918,2]
[401943271,1768416645403,-151.0,0.00021918,2]
[401943272,1768416645413,-259.047216,0.00021918,2]
[401943273,1768416645423,-259.047216,0.00021918,2]
[401943274,1768416645436,-259.047216,0.00021918,2]
[401943275,1768416645446,-259.047216,0.00021918,2]
[401943276,1768416645456,-1570.773702,0.00021918,2]
[401943277,1768416645466,-1570.773702,0.00021918,2]
[401943278,1768416645476,-2102.360648,0.00021918,2]
[401943279,1768416645486,-2102.360648,0.00021918,2]
[401943280,1768416645498,-153.839404,0.00021918,2]
[401943281,1768416645509,-2102.360648,0.00021918,2]
[401943282,1768416645519,-442.400587,0.00021918,2]
[401943283,1768416645530,-2102.360648,0.00021918,2]
[401943285,1768416645540,-442.400587,0.00021918,2]
[401943286,1768416645549,-442.400587,0.00021918,2]
[401943287,1768416645559,-151.0,0.00021918,2]
[401943288,1768416645568,-442.400587,0.00021918,2]
[401943289,1768416645578,-151.0,0.00021918,2]
[401943291,1768416645587,-151.0,0.00021918,2]
[401943293,1768416645598,-151.0,0.00021918,2]
[401943295,1768416645608,-151.0,0.00021918,2]
[401943297,1768416645619,-151.0,0.00021918,2]
[401943298,1768416645628,-151.0,0.00021918,2]
[401943299,1768416645639,-241.541461,0.00021918,2]
[401943301,1768416645650,-164.260276,0.00021918,2]
[401943303,1768416645659,-151.0,0.00021918,2]
[401943305,1768416645669,-151.0,0.00021918,2]
[401943307,1768416645679,-151.0,0.00021918,2]
[401943309,1768416645689,-151.0,0.00021918,2]
[401943310,1768416645700,-151.0,0.00021918,2]
[401943311,1768416645712,-151.0,0.00021918,2]
[401943312,1768416645721,-302.604582,0.00021918,2]
[401943313,1768416645731,-302.604582,0.00021918,2]
[401943314,1768416645742,-151.0,0.00021918,2]
[401943315,1768416645752,-302.604582,0.00021918,2]
[401943316,1768416645761,-151.0,0.00021918,2]
[401943317,1768416645771,-151.0,0.00021918,2]
[401943318,1768416645781,-302.604582,0.00021918,2]
[401943319,1768416645791,-151.0,0.00021918,2]
[401943320,1768416645802,-151.0,0.00021918,2]
[401943321,1768416645813,-171.320259,0.00021918,2]
[401943322,1768416645823,-151.0,0.00021918,2]
[401943323,1768416645836,-151.0,0.00021918,2]
[401943324,1768416645847,-151.0,0.00021918,2]
[401943325,1768416645857,-151.0,0.00021918,2]
[401943326,1768416645868,-151.0,0.00021918,2]
[401943327,1768416645879,-151.0,0.00021918,2]
[401943328,1768416645890,-151.0,0.00021918,2]
[401943329,1768416645900,-151.0,0.00021918,2]
[401943330,1768416645912,-240.635546,0.00021918,2]
[401943331,1768416645922,-151.0,0.00021918,2]
[401943332,1768416645932,-151.0,0.00021918,2]
[401943333,1768416645942,-151.0,0.00021918,2]
[401943334,1768416645952,-151.0,0.00021918,2]
[401943335,1768416645962,-234.643774,0.00021918,2]
[401943336,1768416645972,-151.0,0.00021918,2]
[401943337,1768416645985,-240.755518,0.00021918,2]
[401943338,1768416645995,-151.0,0.00021918,2]
[401943339,1768416646004,-151.0,0.00021918,2]
[401943340,1768416646014,-151.0,0.00021918,2]
[401943341,1768416646024,-276.465874,0.00021918,2]
[401943342,1768416646035,-151.0,0.00021918,2]
[401943343,1768416646045,-151.0,0.00021918,2]
[401943344,1768416646056,-151.0,0.00021918,2]
[401943345,1768416646066,-151.0,0.00021918,2]
[401943346,1768416646077,-151.0,0.00021918,2]
[401943347,1768416646087,-151.0,0.00021918,2]
[401943349,1768416646098,-1200.0,0.00021918,2]
[401943350,1768416646110,-650.0,0.00021918,2]
[401943351,1768416646123,-7364.52541442,0.00021918,2]
[401943352,1768416646133,-2000.0,0.00021932,7]
[401943353,1768416646143,-11434.83681078,0.00021955,2]
[401943354,1768416646152,-886.2,0.0002197,2]
[401943355,1768416646161,-947.5310417,0.0002199,2]
[401943356,1768416646170,-2145.3,0.00022,7]
[401943357,1768416646179,-1000.0,0.00022282,10]
[401943358,1768416646189,-1000.0,0.00022282,10]
[401943359,1768416646198,-579.0,0.00022282,10]
[401943360,1768416646207,-151.0,0.00022282,2]
[401943361,1768416646216,-151.0,0.00022282,2]
[401943362,1768416646226,-151.0,0.00022282,2]
[401943363,1768416646235,-31763.1,0.000223,2]
[401943364,1768416646244,-300.0,0.00022466,2]
[401943365,1768416646254,-200.0,0.00022466,2]
[401943366,1768416646264,-750.0,0.00022466,2]
[401943367,1768416646274,-13229.05305027,0.00022498,2]
[401943368,1768416646284,-2096.59043066,0.00022612,7]
[401943369,1768416646294,-767.87515318,0.00022681,15]
[401943370,1768416646303,-2000.0,0.00022936,7]
[401943371,1768416646312,-1400.0,0.00023014,2]
[401943372,1768416646321,-450.0,0.00023014,2]
[401943373,1768416646330,-850.0,0.00023014,2]
[401943374,1768416646340,-250.0,0.00023014,2]
[401943375,1768416646350,-230.42,0.000231,7]
[401943376,1768416646359,-182.95072115,0.0002315,2]
[401943377,1768416646369,-900.0,0.00023151,2]
[401943378,1768416646378,-1700.0,0.00023155,2]
[401943379,1768416646388,-1700.0,0.00023235,2]
[401943380,1768416646398,-1700.0,0.00023241,2]
[401943381,1768416646409,-1700.0,0.00023249,2]
[401943382,1768416646419,-800.0,0.00023256,2]
[401943383,1768416646428,-900.0,0.00023256,2]
[401943384,1768416646438,-2971.2102794,0.00023265,2]
[401943385,1768416646447,-886.2,0.00023286,2]
[401943386,1768416646458,-499.3,0.00023315,2]
[401943387,1768416646467,-155.398666,0.00023328,2]
[401943388,1768416646477,-151.0,0.00023328,2]
[401943389,1768416646488,-151.0,0.00023328,2]
[401943390,1768416646498,-1700.0,0.00023328,2]
[401943391,1768416646508,-500.0,0.00023357,2]
[401943392,1768416646517,-500.0,0.00023373,2]
[401943393,1768416646527,-4527.87,0.000234,14]
[401943394,1768416646538,-243.5,0.000234,7]
[401943395,1768416646547,-900.0,0.00023432,2]
[401943396,1768416646556,-800.0,0.00023432,2]
[401943397,1768416646629,-2971.2102794,0.00023442,2]
[401943398,1768416646640,-800.0,0.00023465,2]
[401943399,1768416646649,-767.87515318,0.00023491,16]
[401943400,1768416646658,-214.05,0.000235,7]
[401943401,1768416646667,-791.34915639,0.00023501,2]
[401943402,1768416646677,-253.132,0.00023502,4]
[401943403,1768416646686,-500.0,0.00023511,2]
[401943404,1768416646696,-500.0,0.00023515,2]
[401943405,1768416646705,-2574.84746943,0.0002352,2]
[401943406,1768416646715,-1700.0,0.00023533,2]
[401943407,1768416646724,-500.0,0.00023533,2]
[401943408,1768416646733,-5174.0,0.00023555,2]
[401943409,1768416646743,-600.0,0.00023562,2]
[401943410,1768416646753,-950.0,0.00023562,2]
[401943411,1768416646765,-210.92385342,0.00023562,2]
[401943412,1768416646774,-280.086265,0.00023569,2]
[401943413,1768416646784,-151.0,0.00023569,2]
[401943414,1768416646794,-280.086265,0.00023569,2]
[401943415,1768416646803,-151.0,0.00023569,2]
[401943416,1768416646813,-280.086265,0.00023569,2]
[401943417,1768416646822,-280.086265,0.00023569,2]
[401943418,1768416646831,-277.161137,0.00023569,2]
[401943419,1768416646841,-277.161137,0.00023569,2]
[401943420,1768416646851,-151.0,0.00023569,2]
[401943421,1768416646860,-277.161137,0.00023569,2]
[401943422,1768416646869,-277.161137,0.00023569,2]
[401943423,1768416646879,-306.935561,0.00023569,2]
[401943424,1768416646888,-306.935561,0.00023569,2]
[401943425,1768416646898,-306.935561,0.00023569,2]
[401943426,1768416646907,-306.935561,0.00023569,2]
[401943427,1768416646917,-239.496216,0.00023569,2]
[401943428,1768416646927,-239.496216,0.00023569,2]
[401943429,1768416646936,-239.496216,0.00023569,2]
[401943430,1768416646947,-239.496216,0.00023569,2]
[401943431,1768416646957,-352.688053,0.00023569,2]
[401943432,1768416646967,-352.688053,0.00023569,2]
[401943433,1768416646976,-352.688053,0.00023569,2]
[401943434,1768416646990,-352.688053,0.00023569,2]
[401943435,1768416647000,-151.0,0.00023569,2]
[401943436,1768416647009,-258.319491,0.00023569,2]
[401943437,1768416647018,-258.319491,0.00023569,2]
[401943438,1768416647029,-258.319491,0.00023569,2]
[401943439,1768416647039,-258.319491,0.00023569,2]
[401943440,1768416647049,-169.388304,0.00023569,2]
[401943441,1768416647060,-151.0,0.00023569,2]
[401943442,1768416647070,-151.0,0.00023569,2]
[401943443,1768416647079,-151.0,0.00023569,2]
[401943444,1768416647088,-151.0,0.00023569,2]
[401943445,1768416647098,-900.0,0.00023588,2]
[401943446,1768416647107,-800.0,0.00023608,2]
[401943447,1768416647116,-800.0,0.00023618,2]
[401943448,1768416647126,-800.0,0.00023644,2]
[401943449,1768416647136,-900.0,0.00023646,2]
[401943450,1768416647146,-900.0,0.00023649,2]
[401943451,1768416647155,-900.0,0.0002365,2]
[401943452,1768416647165,-4717.32846899,0.00023658,7]
[401943453,1768416647175,-500.0,0.00023664,2]
[401943454,1768416647184,-2971.2102794,0.00023674,2]
[401943455,1768416647193,-2145.3,0.000237,7]
[401943456,1768416647203,-800.0,0.00023718,2]
[401943457,1768416647213,-1700.0,0.0002372,2]
[401943458,1768416647223,-800.0,0.00023723,2]
[401943459,1768416647232,-1700.0,0.00023787,2]
[401943460,1768416647242,-1700.0,0.00023829,2]
[401943461,1768416647252,-1700.0,0.00023859,2]
[401943462,1768416647262,-800.0,0.00023867,2]
[401943463,1768416647271,-171.590908,0.00023868,2]
[401943464,1768416647281,-151.0,0.00023868,2]
[401943465,1768416647290,-151.0,0.00023868,2]
[401943466,1768416647300,-151.0,0.00023868,2]
[401943467,1768416647310,-151.0,0.00023868,2]
[401943468,1768416647319,-151.0,0.00023868,2]
[401943469,1768416647329,-154.979883,0.00023868,2]
[401943470,1768416647340,-225.938304,0.00023868,2]
[401943471,1768416647350,-151.0,0.00023868,2]
[401943472,1768416647359,-151.0,0.00023868,2]
[401943473,1768416647369,-151.0,0.00023868,2]
[401943474,1768416647378,-151.0,0.00023868,2]
[401943475,1768416647387,-151.0,0.00023868,2]
[401943476,1768416647396,-151.0,0.00023868,2]
[401943477,1768416647406,-151.0,0.00023868,2]
[401943478,1768416647415,-151.0,0.00023868,2]
[401943479,1768416647425,-151.0,0.00023868,2]
[401943480,1768416647435,-151.0,0.00023868,2]
[401943481,1768416647444,-151.0,0.00023868,2]
[401943482,1768416647453,-151.0,0.00023868,2]
[401943483,1768416647463,-151.0,0.00023868,2]
[401943484,1768416647472,-151.0,0.00023868,2]
[401943485,1768416647482,-151.0,0.00023868,2]
[401943486,1768416647492,-151.0,0.00023868,2]
[401943487,1768416647503,-11434.83681078,0.00023868,2]
[401943488,1768416647512,-1700.0,0.00023906,2]
[401943489,1768416647522,-800.0,0.00023935,2]
[401943490,1768416647531,-2000.0,0.0002394,7]
[401943491,1768416647540,-900.0,0.00023967,2]
[401943492,1768416647549,-2971.2102794,0.00023979,2]
[401943493,1768416647558,-900.0,0.00023981,2]
[401943494,1768416647567,-293.85068442,0.00023986,2]
[401943495,1768416647577,-1029.52892031,0.0002399,2]
[401943496,1768416647586,-31763.1,0.00024,2]
[401943497,1768416647595,-167.77,0.00024,7]
[401943498,1768416647604,-1041.66666667,0.00024,7]
[401943499,1768416647613,-151.0,0.00024,2]
[401943500,1768416647622,-1138.584656,0.00024,2]
[401943501,1768416647631,-1138.584656,0.00024,2]
[401943502,1768416647641,-1138.584656,0.00024,2]
[401943503,1768416647650,-1138.584656,0.00024,2]
[401943504,1768416647660,-151.0,0.00024,2]
[401943505,1768416647670,-151.0,0.00024,2]
[401943506,1768416647679,-151.0,0.00024,2]
[401943507,1768416647689,-151.0,0.00024,2]
[401943508,1768416647700,-275.55471384,0.00024,2]
[401943509,1768416647711,-151.0,0.00024,2]
[401943510,1768416647722,-151.0,0.00024,2]
[401943511,1768416647732,-151.0,0.00024,2]
[401943512,1768416647741,-151.0,0.00024,2]
[401943513,1768416647751,-151.0,0.00024,2]
[401943514,1768416647760,-151.0,0.00024,2]
[401943515,1768416647769,-151.0,0.00024,2]
[401943516,1768416647778,-151.0,0.00024,2]
[401943517,1768416647787,-151.0,0.00024,2]
[401943518,1768416647796,-151.0,0.00024,2]
[401943519,1768416647805,-186.591978,0.00024,2]
[401943520,1768416647814,-186.591978,0.00024,2]
[401943521,1768416647824,-1041.66666667,0.00024,7]
[401943522,1768416647834,-186.591978,0.00024,2]
[401943523,1768416647843,-186.591978,0.00024,2]
[401943524,1768416647852,-302.604582,0.00024,2]
[401943525,1768416647861,-302.604582,0.00024,2]
[401943526,1768416647871,-151.0,0.00024,2]
[401943527,1768416647880,-302.604582,0.00024,2]
[401943528,1768416647889,-151.0,0.00024,2]
[401943529,1768416647899,-302.604582,0.00024,2]
[401943530,1768416647910,-151.0,0.00024,2]
[401943531,1768416647919,-151.0,0.00024,2]
[401943532,1768416647931,-800.0,0.00024013,2]
[401943533,1768416647941,-900.0,0.0002403,2]
[401943534,1768416647951,-180.14411529,0.00024044,2]
[401943535,1768416647962,-1700.0,0.000241,2]
[401943536,1768416647973,-900.0,0.00024107,2]
[401943537,1768416647985,-1700.0,0.00024109,2]
[401943538,1768416647997,-1601.4141805,0.0002411,2]
[401943539,1768416648006,-750.0,0.0002411,2]
[401943540,1768416648015,-1050.0,0.0002411,2]
[401943541,1768416648027,-900.0,0.00024113,2]
[401943542,1768416648036,-500.0,0.0002413,2]
[401943543,1768416648047,-1700.0,0.00024136,2]
[401943544,1768416648058,-800.0,0.00024138,2]
[401943545,1768416648068,-1700.0,0.00024142,2]
[401943546,1768416648079,-800.0,0.00024145,2]
[401943547,1768416648090,-500.0,0.00024159,2]
[401943548,1768416648100,-900.0,0.00024186,2]
[401943549,1768416648110,-1700.0,0.00024191,2]
[401943550,1768416648120,-900.0,0.00024192,2]
[401943551,1768416648130,-800.0,0.00024194,2]
[401943552,1768416648139,-151.0,0.00024197,2]
[401943553,1768416648149,-259.047216,0.00024197,2]
[401943554,1768416648159,-259.047216,0.00024197,2]
[401943555,1768416648171,-259.047216,0.00024197,2]
[401943556,1768416648181,-259.047216,0.00024197,2]
[401943557,1768416648191,-1570.773702,0.00024197,2]
[401943558,1768416648201,-1570.773702,0.00024197,2]
[401943559,1768416648210,-683.587352,0.00024197,2]
[401943560,1768416648219,-683.587352,0.00024197,2]
[401943561,1768416648228,-683.587352,0.00024197,2]
[401943562,1768416648237,-683.587352,0.00024197,2]
[401943563,1768416648247,-2102.360648,0.00024197,2]
[401943564,1768416648257,-2102.360648,0.00024197,2]
[401943565,1768416648266,-2102.360648,0.00024197,2]
[401943566,1768416648278,-442.400587,0.00024197,2]
[401943567,1768416648288,-2102.360648,0.00024197,2]
[401943568,1768416648298,-442.400587,0.00024197,2]
[401943569,1768416648309,-795.987765,0.00024197,2]
[401943570,1768416648319,-442.400587,0.00024197,2]
[401943571,1768416648329,-151.0,0.00024197,2]
[401943572,1768416648338,-442.400587,0.00024197,2]
[401943573,1768416648347,-272.028283,0.00024197,2]
[401943574,1768416648356,-795.987765,0.00024197,2]
[401943575,1768416648365,-795.987765,0.00024197,2]
[401943576,1768416648375,-795.987765,0.00024197,2]
[401943577,1768416648385,-151.0,0.00024197,2]
[401943578,1768416648394,-800.0,0.00024206,2]
[401943579,1768416648404,-2971.2102794,0.0002421,2]
[401943580,1768416648414,-900.0,0.00024225,2]
[401943581,1768416648423,-800.0,0.00024236,2]
[401943582,1768416648433,-500.0,0.00024237,2]
[401943583,1768416648442,-800.0,0.00024274,2]
[401943584,1768416648451,-1700.0,0.00024282,2]
[401943585,1768416648462,-1700.0,0.00024296,2]
[401943586,1768416648472,-767.87515318,0.00024301,18]
[401943587,1768416648483,-500.0,0.00024321,2]
[401943588,1768416648493,-800.0,0.00024398,2]
[401943589,1768416648504,-1700.0,0.00024401,2]
[401943590,1768416648513,-1136.22969737,0.00024428,2]
[401943591,1768416648523,-4544.91878947,0.00024428,2]
[401943592,1768416648532,-326.00763202,0.00024428,2]
[401943593,1768416648542,-1304.03052809,0.00024428,2]
[401943594,1768416648552,-2934.0686882,0.00024428,2]
[401943595,1768416648561,-5216.12211236,0.00024428,2]
[401943596,1768416648570,-8150.19080057,0.00024428,2]
[401943597,1768416648581,-238.67435706,0.00024428,2]
[401943598,1768416648592,-377.5822533,0.00024438,2]
[401943599,1768416648603,-377.5822533,0.00024438,2]
[401943600,1768416648613,-1700.0,0.0002447,2]
[401943601,1768416648624,-800.0,0.00024482,2]
[401943602,1768416648633,-1700.0,0.00024493,2]
[401943603,1768416648644,-190.0,0.00024507,2]
[401943604,1768416648654,-1000.0,0.0002451,10]
[401943605,1768416648664,-1000.0,0.0002451,10]
[401943606,1768416648673,-1000.0,0.0002451,10]
[401943607,1768416648684,-800.0,0.00024538,2]
[401943608,1768416648693,-800.0,0.00024563,2]
[401943609,1768416648703,-2971.21027941,0.00024564,2]
[401943610,1768416648713,-355.26879672,0.00024575,13]
[401943611,1768416648722,-1700.0,0.000246,2]
[401943612,1768416648732,-4527.87,0.000246,14]
[401943613,1768416648742,-243.5,0.000246,7]
[401943614,1768416648752,-886.2,0.00024601,2]
[401943615,1768416648762,-800.0,0.00024654,2]
[401943616,1768416648772,-900.0,0.00024658,2]
[401943617,1768416648782,-1000.0,0.00024658,2]